fUSD/lending_fUSD_20250208
["ID","MTS","AMOUNT","RATE_DAILY","PERIOD"]
[352270449,1739022644684,-1548.77,0.00010252,2]
[352270451,1739022644694,-4026.07,0.00010252,2]
[352270453,1739022644703,-1091.09,0.00010252,2]
[352270455,1739022644712,-1338.06,0.00010252,2]
[352270457,1739022644721,-500.0,0.00010252,2]
[352270459,1739022644730,-1508.55,0.00010252,2]
[352270461,1739022644739,-500.0,0.00010252,2]
[352270463,1739022644748,-604.0,0.00010252,2]
[352270465,1739022644758,-1939.0,0.00010252,2]
[352270467,1739022644768,-551.41,0.00010252,2]
[352270469,1739022644777,-500.0,0.00010252,2]
[352270472,1739022644786,-937.23,0.00010252,2]
[352270473,1739022644796,-985.5,0.00010252,2]
[352270475,1739022644805,-2701.57,0.00010252,2]
[352270477,1739022644814,-1087.02,0.00010252,2]
[352270480,1739022644824,-1218.79,0.00010252,2]
[352270481,1739022644834,-1793.48,0.00010252,2]
[352270484,1739022644843,-628.51,0.00010252,2]
[352270486,1739022644852,-1494.77,0.00010252,2]
[352270487,1739022644861,-500.0,0.00010252,2]
[352270489,1739022644871,-1798.79,0.00010252,2]
[352270491,1739022644880,-648.31,0.00010252,2]
[352270493,1739022644889,-487.67326059,0.00010252,2]
[352270496,1739022644901,-625.42636932,0.00010252,2]
[352270499,1739022644918,-560.86037009,0.00010252,2]
[352270501,1739022644927,-155.47144692,0.00010252,2]
[352270503,1739022644939,-844.52855308,0.00010252,2]
[352270505,1739022644948,-1758.96,0.00010252,2]
[352270507,1739022644958,-801.76,0.00010252,2]
[352270509,1739022644968,-2612.7,0.00010252,2]
[352270511,1739022644978,-1382.75,0.00010252,2]
[352270513,1739022644987,-500.0,0.00010252,2]
[352270515,1739022644996,-675.52,0.00010252,2]
[352270517,1739022645005,-1400.14,0.00010252,2]
[352270519,1739022645015,-500.0,0.00010252,2]
[352270521,1739022645025,-1042.7,0.00010252,2]
[352270523,1739022645034,-1538.46,0.00010252,2]
[352270525,1739022645044,-1848.38,0.00010252,2]
[352270549,1739022645258,-500.0,0.00010252,2]
[352270551,1739022645269,-500.0,0.00010252,2]
[352270553,1739022645280,-500.0,0.00010252,2]
[352270555,1739022645289,-500.0,0.00010252,2]
[352270557,1739022645300,-707.0,0.00010252,2]
[352270559,1739022645310,-843.89,0.00010252,2]
[352270561,1739022645324,-1190.12,0.00010252,2]
[352270563,1739022645335,-500.0,0.00010252,2]
[352270565,1739022645345,-500.0,0.00010252,2]
[352270567,1739022645355,-660.16,0.00010252,2]
[352270569,1739022645365,-500.0,0.00010252,2]
[352270571,1739022645375,-500.0,0.00010252,2]
[352270573,1739022645385,-500.0,0.00010252,2]
[352270575,1739022645394,-838.83,0.00010252,2]
[352270577,1739022645404,-69.77137479,0.00010252,2]
[352270580,1739022645424,-430.22862521,0.00010252,2]
[352270582,1739022645434,-323.47087717,0.00010252,2]
[352270585,1739022645445,-176.52912283,0.00010252,2]
[352270587,1739022645455,-80.1826769,0.00010252,2]
[352270589,1739022645468,-419.8173231,0.00010252,2]
[352270591,1739022645478,-658.85534999,0.00010252,2]
[352270593,1739022645490,-201.29465001,0.00010252,2]
[352270595,1739022645499,-49.96197259,0.00010252,2]
[352270597,1739022645510,-394.14,0.00010252,2]
[352270600,1739022645528,-941.68,0.00010252,2]
[352270643,1739022645947,-500.0,0.00010115,2]
[352270645,1739022645957,-500.0,0.00010116,2]
[352270647,1739022645966,-384.76802741,0.00010252,2]
[352270649,1739022645976,-1642.67,0.00010252,2]
[352270651,1739022645986,-500.0,0.00010253,2]
[352270653,1739022645996,-500.0,0.00010253,2]
[352270656,1739022646006,-168.75557708,0.00010253,2]
[352270658,1739022646019,-500.0,0.00010253,2]
[352270660,1739022646028,-500.0,0.00010253,2]
[352270662,1739022646039,-500.0,0.00010253,2]
[352270664,1739022646048,-500.0,0.00010253,2]
[352270667,1739022646058,-500.0,0.00010253,2]
[352270669,1739022646069,-500.0,0.00010253,2]
[352270671,1739022646079,-343.22416698,0.00010253,2]
[352270673,1739022646088,-500.0,0.00010253,2]
[352270675,1739022646098,-500.0,0.00010253,2]
[352270677,1739022646108,-500.0,0.00010253,2]
[352270679,1739022646117,-500.0,0.00010253,2]
[352270681,1739022646127,-500.0,0.00010253,2]
[352270683,1739022646136,-500.0,0.00010253,2]
[352270685,1739022646146,-500.0,0.00010253,2]
[352270687,1739022646155,-500.0,0.00010253,2]
[352270689,1739022646165,-500.0,0.00010253,2]
[352270691,1739022646174,-500.0,0.00010253,2]
[352270693,1739022646184,-49.56065587,0.00010253,2]
[352270695,1739022646197,-450.43934413,0.00010253,2]
[352270697,1739022646206,-500.0,0.00010253,2]
[352270699,1739022646216,-500.0,0.00010253,2]
[352270701,1739022646226,-500.0,0.00010253,2]
[352270703,1739022646235,-500.0,0.00010253,2]
[352270705,1739022646245,-500.0,0.00010253,2]
[352270707,1739022646254,-286.13605615,0.00010253,2]
[352270709,1739022646264,-500.0,0.00010253,2]
[352270711,1739022646274,-631.85,0.00010253,2]
[352270713,1739022646284,-500.0,0.00010253,2]
[352270715,1739022646294,-500.0,0.00010253,2]
[352270717,1739022646304,-671.63,0.00010253,2]
[352270719,1739022646314,-869.01,0.00010253,2]
[352270722,1739022646326,-500.0,0.00010253,2]
[352270723,1739022646335,-500.0,0.00010253,2]
[352270725,1739022646345,-500.0,0.00010253,2]
[352270727,1739022646355,-471.35181176,0.00010253,2]
[352270730,1739022646368,-28.64818824,0.00010253,2]
[352270732,1739022646377,-279.75181876,0.00010253,2]
[352270738,1739022646430,-682.77818124,0.00010253,2]
[352270740,1739022646439,-716.24,0.00010253,2]
[352270742,1739022646449,-500.0,0.00010253,2]
[352270744,1739022646458,-500.0,0.00010253,2]
[352270746,1739022646468,-194.81167238,0.00010253,2]
[352270748,1739022646479,-305.18832762,0.00010253,2]
[352270750,1739022646489,-500.0,0.00010253,2]
[352270752,1739022646499,-500.0,0.00010253,2]
[352270754,1739022646508,-294.50784709,0.00010253,2]
[352270756,1739022646798,-205.49215291,0.00010253,2]
[352270757,1739022646808,-500.0,0.00010253,2]
[352270758,1739022646818,-500.0,0.00010253,2]
[352270759,1739022646828,-538.97,0.00010253,2]
[352270760,1739022646838,-792.08,0.00010253,2]
[352270761,1739022646848,-500.0,0.00010253,2]
[352270762,1739022646858,-627.77,0.00010253,2]
[352270764,1739022646867,-500.0,0.00010253,2]
[352270766,1739022646877,-888.63,0.00010253,2]
[352270768,1739022646886,-500.0,0.00010253,2]
[352270770,1739022646895,-534.85,0.00010253,2]
[352270772,1739022646905,-500.0,0.00010253,2]
[352270774,1739022646914,-500.0,0.00010253,2]
[352270776,1739022646924,-500.0,0.00010253,2]
[352270778,1739022646933,-500.0,0.00010253,2]
[352270780,1739022646943,-500.0,0.00010253,2]
[352270782,1739022646952,-500.0,0.00010253,2]
[352270784,1739022646961,-500.0,0.00010253,2]
[352270785,1739022646970,-500.0,0.00010253,2]
[352270787,1739022646980,-500.0,0.00010253,2]
[352270789,1739022646990,-656.61,0.00010253,2]
[352270791,1739022646999,-500.0,0.00010253,2]
[352270793,1739022647008,-500.0,0.00010253,2]
[352270795,1739022647016,-500.0,0.00010253,2]
[352270797,1739022647025,-500.0,0.00010253,2]
[352270799,1739022647035,-500.0,0.00010253,2]
[352270800,1739022647045,-500.0,0.00010253,2]
[352270802,1739022647055,-500.0,0.00010253,2]
[352270804,1739022647064,-500.0,0.00010253,2]
[352270806,1739022647075,-500.0,0.00010253,2]
[352270808,1739022647084,-500.0,0.00010253,2]
[352270810,1739022647094,-500.0,0.00010253,2]
[352270812,1739022647104,-500.0,0.00010253,2]
[352270814,1739022647113,-788.79,0.00010253,2]
[352270816,1739022647123,-500.0,0.00010253,2]
[352270817,1739022647133,-500.0,0.00010253,2]
[352270818,1739022647142,-500.0,0.00010253,2]
[352270819,1739022647152,-500.0,0.00010253,2]
[352270820,1739022647161,-500.0,0.00010253,2]
[352270821,1739022647170,-500.0,0.00010253,2]
[352270822,1739022647180,-622.28,0.00010253,2]
[352270823,1739022647189,-500.0,0.00010253,2]
[352270824,1739022647198,-500.0,0.00010253,2]
[352270825,1739022647208,-500.0,0.00010253,2]
[352270826,1739022647218,-1019.3,0.00010253,2]
[352270827,1739022647227,-500.0,0.00010253,2]
[352270828,1739022647237,-500.0,0.00010253,2]
[352270829,1739022647247,-594.67,0.00010253,2]
[352270830,1739022647257,-500.0,0.00010253,2]
[352270831,1739022647267,-692.46,0.00010253,2]
[352270832,1739022647276,-500.0,0.00010253,2]
[352270833,1739022647285,-500.0,0.00010253,2]
[352270834,1739022647295,-566.86,0.00010253,2]
[352270835,1739022647306,-500.0,0.00010253,2]
[352270836,1739022647316,-500.0,0.00010253,2]
[352270837,1739022647325,-647.22,0.00010253,2]
[352270838,1739022647335,-500.0,0.00010253,2]
[352270839,1739022647346,-500.0,0.00010253,2]
[352270840,1739022647356,-500.0,0.00010253,2]
[352270841,1739022647366,-500.0,0.00010253,2]
[352270842,1739022647376,-500.0,0.00010253,2]
[352270843,1739022647386,-519.15,0.00010253,2]
[352270845,1739022647396,-500.0,0.00010253,2]
[352270847,1739022647406,-500.0,0.00010253,2]
[352270848,1739022647416,-500.0,0.00010253,2]
[352270849,1739022647427,-500.0,0.00010253,2]
[352270850,1739022647438,-647.07,0.00010253,2]
[352270851,1739022647447,-500.0,0.00010253,2]
[352270852,1739022647456,-643.41,0.00010253,2]
[352270853,1739022647466,-500.0,0.00010253,2]
[352270854,1739022647475,-500.0,0.00010253,2]
[352270855,1739022647486,-778.13,0.00010253,2]
[352270856,1739022647497,-667.42,0.00010253,2]
[352270857,1739022647507,-500.0,0.00010253,2]
[352270858,1739022647517,-500.0,0.00010253,2]
[352270859,1739022647526,-526.23,0.00010253,2]
[352270860,1739022647536,-500.0,0.00010253,2]
[352270861,1739022647545,-663.41,0.00010253,2]
[352270862,1739022647556,-500.0,0.00010253,2]
[352270863,1739022647566,-643.79,0.00010253,2]
[352270864,1739022647578,-643.46,0.00010253,2]
[352270865,1739022647590,-692.89,0.00010253,2]
[352270866,1739022647602,-637.89,0.00010253,2]
[352270867,1739022647611,-518.79,0.00010253,2]
[352270868,1739022647622,-500.0,0.00010253,2]
[352270869,1739022647634,-500.0,0.00010253,2]
[352270870,1739022647644,-500.0,0.00010253,2]
[352270871,1739022647655,-315.00247692,0.00010253,2]
[352270895,1739022648026,-348.547565,0.00010115,2]
[352270897,1739022648042,-151.452435,0.00010115,2]
[352270899,1739022648053,-500.0,0.00010116,2]
[352270901,1739022648062,-516.81,0.00010116,2]
[352270903,1739022648073,-184.99752308,0.00010253,2]
[352270905,1739022648082,-490.39508025,0.00010253,2]
[352270908,1739022648095,-9.60491975,0.00010253,2]
[352270910,1739022648105,-410.81909435,0.00010253,2]
[352270912,1739022648117,-89.18090565,0.00010253,2]
[352270914,1739022648127,-467.69061435,0.00010253,2]
[352271089,1739023026842,-786.89,8.219e-05,2]
[352271090,1739023026863,-5000.0,8.973e-05,2]
[352271091,1739023026887,-210.32,9.663e-05,2]
[352271092,1739023026910,-1000.0,9.69e-05,2]
[352271093,1739023026932,-251.44,9.714e-05,2]
[352271094,1739023026953,-500.0,9.736e-05,2]
[352271095,1739023026973,-150.0,0.00010114,2]
[352271096,1739023027256,-620.76,0.00010115,2]
[352271097,1739023027278,-500.0,0.00010115,2]
[352271098,1739023027301,-500.0,0.00010115,2]
[352271099,1739023027323,-863.38,0.00010115,2]
[352271100,1739023027343,-500.0,0.00010115,2]
[352271101,1739023027364,-500.0,0.00010115,2]
[352271102,1739023027385,-500.0,0.00010115,2]
[352271103,1739023027406,-715.22,0.00010115,2]
[352271104,1739023027428,-500.0,0.00010115,2]
[352271105,1739023027451,-500.0,0.00010115,2]
[352271106,1739023027472,-500.0,0.00010115,2]
[352271107,1739023027493,-500.0,0.00010115,2]
[352271108,1739023027514,-500.0,0.00010115,2]
[352271109,1739023027536,-793.36,0.00010115,2]
[352271110,1739023027558,-500.0,0.00010115,2]
[352271111,1739023027579,-500.0,0.00010115,2]
[352271112,1739023027602,-500.0,0.00010115,2]
[352271113,1739023027625,-500.0,0.00010115,2]
[352271114,1739023027646,-500.0,0.00010115,2]
[352271115,1739023027668,-500.0,0.00010115,2]
[352271116,1739023027691,-500.0,0.00010115,2]
[352271117,1739023027717,-500.0,0.00010115,2]
[352271118,1739023027744,-542.73,0.00010115,2]
[352271119,1739023027768,-500.0,0.00010115,2]
[352271120,1739023027791,-500.0,0.00010115,2]
[352271121,1739023027813,-500.0,0.00010115,2]
[352271122,1739023027836,-500.0,0.00010115,2]
[352271123,1739023027858,-3690.56,0.00010115,2]
[352271124,1739023027880,-500.0,0.00010115,2]
[352271125,1739023027902,-500.0,0.00010115,2]
[352271126,1739023027924,-500.0,0.00010115,2]
[352271127,1739023027947,-500.0,0.00010115,2]
[352271128,1739023027969,-659.26,0.00010115,2]
[352271129,1739023027991,-1489.05,0.00010115,2]
[352271130,1739023028012,-500.0,0.00010115,2]
[352271131,1739023028034,-1226.55,0.00010115,2]
[352271132,1739023028056,-0.48,0.00010115,2]
[352271135,1739023500097,-500.0,8.851e-05,2]
[352271136,1739023500123,-500.0,8.851e-05,2]
[352271137,1739023500147,-315.25836581,8.851e-05,2]
[352271138,1739023500173,-2005.74163419,8.851e-05,2]
[352271140,1739023831811,-305.98,8.219e-05,2]
[352271141,1739023831830,-441.56,8.219e-05,2]
[352271142,1739023831840,-176.14,9.455e-05,2]
[352271143,1739023831849,-164.07,9.485e-05,2]
[352271144,1739023831858,-2000.0,0.0001,2]
[352271145,1739023831867,-172.38,0.00010024,2]
[352271147,1739023831876,-19011.72316675,0.00010114,2]
[352271149,1739023831887,-150.0,0.00010114,2]
[352271151,1739023831896,-500.0,0.00010115,2]
[352271152,1739023831906,-500.0,0.00010115,2]
[352271154,1739023831915,-500.0,0.00010115,2]
[352271156,1739023831925,-552.39,0.00010115,2]
[352271158,1739023831934,-500.0,0.00010115,2]
[352271160,1739023831943,-500.0,0.00010115,2]
[352271162,1739023831953,-500.0,0.00010115,2]
[352271164,1739023831962,-500.0,0.00010115,2]
[352271166,1739023831972,-500.0,0.00010115,2]
[352271168,1739023831982,-190.56967336,0.00010115,2]
[352271169,1739023831992,-500.0,0.00010115,2]
[352271171,1739023832002,-500.0,0.00010115,2]
[352271173,1739023832014,-500.0,0.00010115,2]
[352271175,1739023832023,-160.14704442,0.00010115,2]
[352271177,1739023832032,-500.0,0.00010115,2]
[352271179,1739023832042,-500.0,0.00010115,2]
[352271181,1739023832052,-500.0,0.00010115,2]
[352271183,1739023832063,-500.0,0.00010115,2]
[352271185,1739023832072,-500.0,0.00010115,2]
[352271187,1739023832082,-500.0,0.00010115,2]
[352271189,1739023832094,-500.0,0.00010115,2]
[352271192,1739023832103,-500.0,0.00010115,2]
[352271195,1739023832113,-500.0,0.00010115,2]
[352271198,1739023832122,-500.0,0.00010115,2]
[352271201,1739023832131,-509.34744137,0.00010115,2]
[352271202,1739023832143,-500.0,0.00010115,2]
[352271204,1739023832153,-500.0,0.00010115,2]
[352271206,1739023832162,-500.0,0.00010115,2]
[352271208,1739023832171,-500.0,0.00010115,2]
[352271210,1739023832181,-500.0,0.00010115,2]
[352271212,1739023832191,-500.0,0.00010115,2]
[352271214,1739023832200,-500.0,0.00010115,2]
[352271216,1739023832210,-500.0,0.00010115,2]
[352271218,1739023832219,-500.0,0.00010115,2]
[352271220,1739023832228,-500.0,0.00010115,2]
[352271222,1739023832237,-500.0,0.00010115,2]
[352271224,1739023832246,-500.0,0.00010115,2]
[352271226,1739023832255,-419.92473953,0.00010115,2]
[352271228,1739023832264,-500.0,0.00010115,2]
[352271230,1739023832274,-500.0,0.00010115,2]
[352271232,1739023832283,-500.0,0.00010115,2]
[352271234,1739023832293,-500.0,0.00010115,2]
[352271236,1739023832302,-500.0,0.00010115,2]
[352271238,1739023832312,-408.25917516,0.00010115,2]
[352271240,1739023832321,-500.0,0.00010115,2]
[352271241,1739023832330,-500.0,0.00010115,2]
[352271243,1739023832340,-500.0,0.00010115,2]
[352271246,1739023832350,-500.0,0.00010115,2]
[352271248,1739023832360,-500.0,0.00010115,2]
[352271249,1739023832370,-500.0,0.00010115,2]
[352271251,1739023832379,-500.0,0.00010115,2]
[352271253,1739023832389,-500.0,0.00010115,2]
[352271255,1739023832398,-500.0,0.00010115,2]
[352271257,1739023832407,-500.0,0.00010115,2]
[352271259,1739023832418,-500.0,0.00010115,2]
[352271261,1739023832428,-567.8,0.00010115,2]
[352271263,1739023832437,-500.0,0.00010115,2]
[352271265,1739023832446,-500.0,0.00010115,2]
[352271267,1739023832455,-500.0,0.00010115,2]
[352271269,1739023832464,-500.0,0.00010115,2]
[352271271,1739023832473,-1279.91,0.00010115,2]
[352271273,1739023832483,-500.0,0.00010115,2]
[352271275,1739023832493,-523.17,0.00010115,2]
[352271277,1739023832502,-500.0,0.00010115,2]
[352271279,1739023832511,-500.0,0.00010115,2]
[352271281,1739023832520,-500.0,0.00010115,2]
[352271283,1739023832529,-500.0,0.00010115,2]
[352271285,1739023832539,-500.0,0.00010115,2]
[352271287,1739023832548,-500.0,0.00010115,2]
[352271289,1739023832557,-281.09137846,0.00010115,2]
[352271291,1739023832566,-500.0,0.00010115,2]
[352271292,1739023832575,-508.31770099,0.00010115,2]
[352271294,1739023832585,-570.21,0.00010115,2]
[352271296,1739023832594,-500.0,0.00010115,2]
[352271298,1739023832603,-500.0,0.00010115,2]
[352271300,1739023832613,-500.0,0.00010115,2]
[352271303,1739023832622,-500.0,0.00010115,2]
[352271305,1739023832631,-500.0,0.00010115,2]
[352271306,1739023832642,-500.0,0.00010115,2]
[352271309,1739023832652,-500.0,0.00010115,2]
[352271310,1739023832662,-500.0,0.00010115,2]
[352271312,1739023832671,-500.0,0.00010115,2]
[352271314,1739023832680,-500.0,0.00010115,2]
[352271316,1739023832689,-500.0,0.00010115,2]
[352271318,1739023832698,-500.0,0.00010115,2]
[352271320,1739023832707,-500.0,0.00010115,2]
[352271322,1739023832716,-500.0,0.00010115,2]
[352271324,1739023832726,-500.0,0.00010115,2]
[352271325,1739023832735,-500.0,0.00010115,2]
[352271327,1739023832744,-500.0,0.00010115,2]
[352271329,1739023832753,-505.3407101,0.00010115,2]
[352271331,1739023832763,-500.0,0.00010115,2]
[352271333,1739023832772,-550.73,0.00010115,2]
[352271335,1739023832781,-500.0,0.00010115,2]
[352271337,1739023832790,-500.0,0.00010115,2]
[352271339,1739023832799,-500.0,0.00010115,2]
[352271341,1739023832808,-500.0,0.00010115,2]
[352271343,1739023832818,-500.0,0.00010115,2]
[352271345,1739023832827,-500.0,0.00010115,2]
[352271347,1739023832836,-696.05,0.00010115,2]
[352271349,1739023832845,-500.0,0.00010115,2]
[352271351,1739023832854,-500.0,0.00010115,2]
[352271353,1739023832864,-999.89,0.00010115,2]
[352271355,1739023832874,-500.0,0.00010115,2]
[352271357,1739023832883,-500.0,0.00010115,2]
[352271359,1739023832894,-500.0,0.00010115,2]
[352271361,1739023832904,-847.98,0.00010115,2]
[352271363,1739023832914,-500.0,0.00010115,2]
[352271365,1739023832923,-500.0,0.00010115,2]
[352271367,1739023832932,-500.0,0.00010115,2]
[352271369,1739023832941,-664.0,0.00010115,2]
[352271370,1739023832951,-500.0,0.00010115,2]
[352271372,1739023832960,-500.0,0.00010115,2]
[352271374,1739023832969,-520.59904714,0.00010115,2]
[352271376,1739023832979,-500.0,0.00010115,2]
[352271378,1739023832989,-586.23,0.00010115,2]
[352271380,1739023832998,-500.0,0.00010115,2]
[352271382,1739023833010,-500.0,0.00010115,2]
[352271384,1739023833022,-500.0,0.00010115,2]
[352271386,1739023833032,-892.82,0.00010115,2]
[352271388,1739023833041,-500.0,0.00010115,2]
[352271390,1739023833051,-500.0,0.00010115,2]
[352271392,1739023833061,-500.0,0.00010115,2]
[352271394,1739023833071,-500.0,0.00010115,2]
[352271396,1739023833081,-544.11,0.00010115,2]
[352271398,1739023833093,-500.0,0.00010115,2]
[352271400,1739023833104,-500.0,0.00010115,2]
[352271402,1739023833114,-500.0,0.00010115,2]
[352271404,1739023833123,-500.0,0.00010115,2]
[352271406,1739023833133,-500.0,0.00010115,2]
[352271408,1739023833144,-500.0,0.00010115,2]
[352271410,1739023833154,-500.0,0.00010115,2]
[352271412,1739023833163,-500.0,0.00010115,2]
[352271414,1739023833172,-500.0,0.00010115,2]
[352271416,1739023833182,-500.0,0.00010115,2]
[352271418,1739023833192,-500.0,0.00010115,2]
[352271419,1739023833202,-500.0,0.00010115,2]
[352271421,1739023833212,-500.0,0.00010115,2]
[352271423,1739023833221,-500.0,0.00010115,2]
[352271425,1739023833231,-500.0,0.00010115,2]
[352271427,1739023833241,-500.0,0.00010115,2]
[352271429,1739023833250,-500.0,0.00010115,2]
[352271431,1739023833259,-500.0,0.00010115,2]
[352271433,1739023833268,-443.53026172,0.00010115,2]
[352271435,1739023833278,-500.0,0.00010115,2]
[352271437,1739023833287,-500.0,0.00010115,2]
[352271439,1739023833297,-500.0,0.00010115,2]
[352271441,1739023833306,-500.0,0.00010115,2]
[352271443,1739023833315,-681.5,0.00010115,2]
[352271445,1739023833324,-755.31,0.00010115,2]
[352271447,1739023833333,-500.0,0.00010115,2]
[352271449,1739023833342,-500.0,0.00010115,2]
[352271450,1739023833351,-500.0,0.00010115,2]
[352271451,1739023833361,-566.04,0.00010115,2]
[352271452,1739023833370,-500.0,0.00010115,2]
[352271454,1739023833379,-500.0,0.00010115,2]
[352271456,1739023833389,-500.0,0.00010115,2]
[352271458,1739023833399,-500.0,0.00010115,2]
[352271460,1739023833409,-838.5,0.00010115,2]
[352271461,1739023833418,-579.68,0.00010115,2]
[352271463,1739023833428,-500.0,0.00010115,2]
[352271465,1739023833437,-500.0,0.00010115,2]
[352271467,1739023833446,-750.52,0.00010115,2]
[352271469,1739023833456,-760.21,0.00010115,2]
[352271471,1739023833465,-500.0,0.00010115,2]
[352271473,1739023833474,-500.0,0.00010115,2]
[352271475,1739023833483,-500.0,0.00010115,2]
[352271477,1739023833492,-500.0,0.00010115,2]
[352271479,1739023833501,-500.0,0.00010115,2]
[352271481,1739023833510,-500.0,0.00010115,2]
[352271483,1739023833520,-500.0,0.00010115,2]
[352271485,1739023833529,-500.0,0.00010115,2]
[352271487,1739023833538,-500.0,0.00010115,2]
[352271489,1739023833548,-500.0,0.00010115,2]
[352271491,1739023833557,-500.0,0.00010115,2]
[352271493,1739023833567,-1255.98,0.00010115,2]
[352271495,1739023833576,-500.0,0.00010115,2]
[352271497,1739023833586,-500.0,0.00010115,2]
[352271499,1739023833596,-500.0,0.00010115,2]
[352271501,1739023833606,-873.02,0.00010115,2]
[352271503,1739023833615,-500.0,0.00010115,2]
[352271505,1739023833624,-500.0,0.00010115,2]
[352271507,1739023833634,-833.17,0.00010115,2]
[352271509,1739023833644,-500.0,0.00010115,2]
[352271511,1739023833653,-828.78,0.00010115,2]
[352271513,1739023833663,-1008.7,0.00010115,2]
[352271515,1739023833672,-916.53,0.00010115,2]
[352271517,1739023833681,-500.0,0.00010116,2]
[352271519,1739023833691,-509.46,0.00010116,2]
[352271521,1739023833700,-500.0,0.00010116,2]
[352271523,1739023833709,-500.0,0.00010116,2]
[352271525,1739023833719,-871.4,0.00010116,2]
[352271527,1739023833727,-500.0,0.00010116,2]
[352271529,1739023833736,-861.31,0.00010116,2]
[352271531,1739023833745,-500.0,0.00010116,2]
[352271533,1739023833754,-844.58,0.00010116,2]
[352271534,1739023833763,-500.0,0.00010116,2]
[352271536,1739023833773,-500.0,0.00010116,2]
[352271538,1739023833782,-500.0,0.00010116,2]
[352271540,1739023833791,-730.52,0.00010116,2]
[352271542,1739023833800,-500.0,0.00010116,2]
[352271544,1739023833809,-500.0,0.00010116,2]
[352271546,1739023833818,-500.0,0.00010116,2]
[352271548,1739023833827,-500.0,0.00010116,2]
[352271550,1739023833837,-500.0,0.00010116,2]
[352271552,1739023833846,-500.0,0.00010116,2]
[352271554,1739023833855,-500.0,0.00010116,2]
[352271556,1739023833864,-377.65,0.00010137,2]
[352271558,1739023833873,-156.45,0.00010137,2]
[352271560,1739023833882,-332.74760718,0.00010249,2]
[352271562,1739023833893,-500.0,0.00010249,2]
[352271564,1739023833902,-500.0,0.00010249,2]
[352271566,1739023833911,-1623.08,0.00010249,2]
[352271568,1739023833921,-633.10561043,0.00010249,2]
[352271570,1739023833930,-763.65,0.00010249,2]
[352271572,1739023833939,-624.15,0.00010249,2]
[352271574,1739023833949,-844.51,0.00010249,2]
[352271576,1739023833958,-500.0,0.00010249,2]
[352271578,1739023833967,-500.0,0.00010249,2]
[352271580,1739023833976,-967.63,0.00010249,2]
[352271582,1739023833985,-1180.81,0.00010249,2]
[352271584,1739023833995,-1292.46,0.00010249,2]
[352271586,1739023834006,-500.0,0.00010249,2]
[352271587,1739023834018,-500.0,0.00010249,2]
[352271589,1739023834027,-500.0,0.00010249,2]
[352271591,1739023834036,-847.37,0.00010249,2]
[352271593,1739023834045,-637.31,0.00010249,2]
[352271595,1739023834055,-150.99,0.00010249,2]
[352271597,1739023834064,-933.63,0.00010249,2]
[352271599,1739023834074,-993.73,0.00010249,2]